bitfinex/quotes_SOLUSD_20240621
["timestamp","ask_amount","ask_price","bid_price","bid_amount"]
[1718971110323,9.61,132.35,132.3,6.5369]
[1718971110907,9.61,132.35,132.3,16.1469]
[1718971113115,6.4179,132.4,132.3,22.1937]
[1718971113289,9.61,132.36,132.31,0.34]
[1718971113689,6.4179,132.4,132.31,9.95]
[1718971113911,6.4179,132.4,132.31,0.34]
[1718971115595,6.4179,132.4,132.3,6.5369]
[1718971115794,145.0,132.39,132.3,6.5369]
[1718971115994,9.61,132.33,132.29,15.1609]
[1718971116195,9.61,132.32,132.29,15.1609]
[1718971119291,9.61,132.33,132.29,15.1609]
[1718971128692,21.4817,132.36,132.27,6.3362]
[1718971128897,21.4817,132.36,132.26,15.9325]
[1718971128898,9.61,132.29,132.26,15.9325]
[1718971129117,9.61,132.28,132.26,15.9325]
[1718971129497,9.61,132.28,132.24,6.2434]
[1718971130330,9.61,132.29,132.24,15.8534]
[1718971130503,9.61,132.28,132.24,6.2434]
[1718971131201,120.17,132.35,132.24,6.2434]
[1718971131409,9.61,132.29,132.24,6.2434]
[1718971132519,9.61,132.29,132.23,16.4449]
[1718971132697,9.61,132.27,132.23,16.4449]
[1718971133104,9.61,132.26,132.23,16.4449]
[1718971133435,9.61,132.3,132.23,16.4449]
[1718971133598,9.61,132.27,132.23,16.4449]
[1718971134425,20.17,132.35,132.23,16.4449]
[1718971134426,9.61,132.28,132.23,26.0549]
[1718971134720,9.61,132.3,132.25,9.61]
[1718971135097,20.17,132.35,132.25,9.61]
[1718971135299,9.61,132.32,132.27,9.61]
[1718971136506,21.4817,132.36,132.27,9.61]
[1718971136822,9.61,132.32,132.27,9.61]
[1718971137205,290.84801086,132.39,132.26,6.7594]
[1718971137401,9.61,132.37,132.28,9.61]
[1718971137619,9.61,132.33,132.29,15.6984]
[1718971144146,20.0,132.38,132.29,25.3084]
[1718971144638,9.61,132.34,132.29,25.3084]
[1718971144839,20.0,132.38,132.31,9.61]
[1718971145042,9.61,132.36,132.31,16.1343]
[1718971146440,9.61,132.35,132.31,6.5243]
[1718971146938,9.61,132.34,132.31,6.5243]
[1718971147342,20.0,132.38,132.29,15.6984]
[1718971147343,9.61,132.33,132.29,15.6984]
[1718971147517,9.61,132.37,132.29,15.6984]
[1718971148119,9.61,132.33,132.29,15.6984]
[1718971149852,9.61,132.37,132.29,15.6984]
[1718971150022,9.61,132.32,132.29,15.6984]
[1718971150833,9.61,132.33,132.29,15.6984]
[1718971151828,9.61,132.37,132.29,15.6984]
[1718971152030,9.61,132.34,132.29,15.6984]
[1718971152729,9.61,132.34,132.29,25.3084]
[1718971154626,20.0,132.38,132.3,0.17]
[1718971154959,9.61,132.38,132.33,9.61]
[1718971155137,9.61,132.39,132.34,9.61]
[1718971155514,9.61,132.39,132.33,9.61]
[1718971155719,9.61,132.38,132.33,9.61]
[1718971155943,293.54,132.44,132.32,16.0728]
[1718971156153,9.61,132.39,132.34,9.61]
[1718971156571,38.44,132.44,132.34,9.61]
[1718971156758,9.61,132.39,132.34,9.61]
[1718971158173,21.4576,132.45,132.35,15.8686]
[1718971158362,9.61,132.41,132.36,9.61]
[1718971158860,9.61,132.41,132.36,16.2725]
[1718971159062,9.61,132.41,132.36,6.6625]
[1718971159271,9.61,132.4,132.36,6.6625]
[1718971162076,9.61,132.39,132.35,15.6986]
[1718971162261,129.61,132.44,132.35,15.6986]
[1718971162262,9.61,132.37,132.35,15.6986]
[1718971162468,9.61,132.36,132.33,6.0301]
[1718971162951,9.61,132.37,132.33,6.0301]
[1718971163152,100.0,132.42,132.33,6.0301]
[1718971163463,9.61,132.38,132.33,6.0301]
[1718971163652,9.61,132.38,132.33,15.6401]
[1718971163979,9.61,132.38,132.33,6.0301]
[1718971164157,0.17,132.43,132.33,6.0301]
[1718971164473,9.61,132.38,132.33,6.0301]
[1718971165472,9.61,132.37,132.33,6.0301]
[1718971166652,9.61,132.36,132.33,6.0301]
[1718971167575,9.61,132.35,132.32,15.3137]
[1718971167778,9.61,132.34,132.32,15.3137]
[1718971169784,100.0,132.41,132.32,15.3137]
[1718971169785,9.61,132.35,132.32,15.3137]
[1718971169987,145.17,132.43,132.32,15.3137]
[1718971170272,9.61,132.36,132.32,15.3137]
[1718971170471,9.61,132.37,132.32,15.3137]
[1718971172673,151.24997269,132.43,132.32,15.3137]
[1718971172878,9.61,132.36,132.32,15.3137]
[1718971174180,9.61,132.36,132.32,24.9237]
[1718971174368,9.61,132.36,132.32,15.3137]
[1718971175383,9.61,132.35,132.32,15.3137]
[1718971180777,9.61,132.34,132.32,15.3137]
[1718971184088,120.0,132.42,132.32,15.3137]
[1718971184397,9.61,132.37,132.32,15.3137]
[1718971184587,9.61,132.36,132.32,15.3137]
[1718971185879,9.61,132.35,132.32,15.3137]
[1718971197718,9.61,132.33,132.29,16.5881]
[1718971197914,9.61,132.31,132.29,16.5881]
[1718971198591,9.61,132.3,132.29,16.5881]
[1718971201011,9.61,132.3,132.26,15.5915]
[1718971201191,9.61,132.28,132.26,15.5915]
[1718971201598,9.61,132.27,132.23,22.5891]
[1718971202801,7.87306356,132.36,132.24,15.1708]
[1718971203017,7.87306356,132.36,132.25,9.61]
[1718971203018,9.61,132.3,132.25,9.61]
[1718971203210,15.1461,132.37,132.27,9.61]
[1718971203406,9.61,132.33,132.28,9.61]
[1718971203711,21.3748,132.42,132.3,15.1183]
[1718971203912,5.8852252,132.42,132.35,21.4009]
[1718971204225,9.61,132.43,132.37,9.61]
[1718971204390,6.3702,132.47,132.37,9.61]
[1718971204595,9.61,132.44,132.35,21.4009]
[1718971204810,9.61,132.38,132.35,21.4009]
[1718971205013,9.61,132.37,132.35,15.1183]
[1718971205199,109.61,132.44,132.31,6.6657]
[1718971205200,9.61,132.36,132.32,16.4488]
[1718971205404,28.85,132.41,132.32,16.4488]
[1718971206125,0.17,132.4,132.32,16.4488]
[1718971206418,20.17,132.4,132.32,16.4488]
[1718971206801,20.17,132.4,132.29,15.4335]
[1718971206802,100.0,132.38,132.29,15.4335]
[1718971207017,100.0,132.38,132.27,6.4795]
[1718971207200,65.0,132.37,132.27,6.4795]
[1718971207405,0.17,132.36,132.27,6.4795]
[1718971208831,20.0,132.37,132.28,0.17]
[1718971209327,0.17,132.38,132.28,0.17]
[1718971209520,21.7164,132.41,132.28,0.17]
[1718971209723,21.7164,132.41,132.31,6.0463]
[1718971210022,6.5703,132.41,132.32,0.34]
[1718971210625,6.5703,132.41,132.32,0.17]
[1718971211001,6.5703,132.41,132.31,0.34]
[1718971211223,21.5957,132.44,132.31,20.34]
[1718971211405,21.5957,132.44,132.32,6.2826]
[1718971211605,21.5957,132.44,132.33,0.34]
[1718971212317,0.17,132.43,132.33,0.34]
[1718971212515,20.0,132.43,132.33,0.34]
[1718971212725,35.3162,132.47,132.34,16.2346]
[1718971212912,35.3162,132.47,132.35,0.34]
[1718971213907,35.3162,132.47,132.36,6.4703]
[1718971214114,15.1461,132.48,132.37,0.34]
[1718971214312,20.0,132.47,132.37,0.17]
[1718971214526,20.0,132.47,132.36,6.4703]
[1718971215123,28.85,132.46,132.36,6.4703]
[1718971215435,0.17,132.45,132.36,6.4703]
[1718971216620,65.17,132.45,132.36,6.4703]
[1718971216815,20.17,132.45,132.36,6.4703]
[1718971219124,100.0,132.44,132.36,6.4703]
[1718971219430,45.17,132.43,132.36,6.4703]
[1718971220231,51.3115,132.43,132.34,16.2346]
[1718971220430,120.0,132.42,132.34,16.2346]
[1718971220646,100.0,132.4,132.32,6.5521]
[1718971220829,100.0,132.4,132.31,16.3501]
[1718971220830,65.17,132.39,132.31,16.3501]
[1718971221214,100.0,132.37,132.28,15.7078]
[1718971221420,71.2818,132.36,132.28,15.7078]
[1718971222036,48.85,132.36,132.28,15.7078]
[1718971222233,28.85,132.36,132.28,15.7078]
[1718971222718,6.3167,132.4,132.28,15.7078]
[1718971222916,65.17,132.39,132.29,0.34]
[1718971223125,165.17,132.39,132.29,0.17]
[1718971223318,165.17,132.39,132.28,15.7078]
[1718971225248,100.0,132.37,132.28,15.7078]
[1718971225439,65.0,132.36,132.28,15.7078]
[1718971225629,0.17,132.35,132.28,15.7078]
[1718971227328,20.0,132.36,132.28,15.7078]
[1718971227527,0.17,132.37,132.28,15.7078]
[1718971227922,45.17,132.37,132.28,15.7078]
[1718971228122,20.0,132.36,132.28,15.7078]
[1718971229324,6.3167,132.4,132.28,15.7078]
[1718971229523,20.0,132.39,132.29,0.34]
[1718971230038,28.85,132.4,132.29,0.34]
[1718971231339,20.17,132.39,132.29,0.34]
[1718971233155,120.17,132.39,132.28,15.7078]
[1718971233336,45.0,132.38,132.28,15.7078]
[1718971233655,20.0,132.37,132.28,15.7078]
[1718971234055,0.17,132.36,132.28,15.7078]
[1718971234433,45.17,132.36,132.28,15.7078]
[1718971234742,20.0,132.35,132.28,15.7078]
[1718971234948,120.0,132.35,132.28,15.7078]
[1718971235136,45.17,132.34,132.28,15.7078]
[1718971235339,20.0,132.33,132.28,15.7078]
[1718971235542,48.85,132.33,132.28,15.7078]
[1718971235749,0.17,132.32,132.28,15.7078]
[1718971236532,48.85,132.33,132.28,15.7078]
[1718971236956,6.1587,132.39,132.28,15.7078]
[1718971237256,20.17,132.38,132.28,15.7078]
[1718971238252,45.0,132.37,132.28,15.7078]
[1718971238554,20.0,132.38,132.29,0.34]
[1718971238744,20.0,132.4,132.29,0.34]
[1718971239549,120.0,132.4,132.29,0.34]
[1718971239755,45.0,132.39,132.29,0.34]
[1718971239936,0.17,132.38,132.29,1.73669119]
[1718971240260,0.17,132.38,132.29,0.34]
[1718971240444,20.0,132.4,132.29,0.34]
[1718971242871,20.0,132.4,132.29,0.17]
[1718971242872,0.17,132.39,132.29,0.17]
[1718971243037,145.17,132.39,132.28,15.7078]
[1718971243354,20.0,132.38,132.28,15.7078]
[1718971243937,0.17,132.39,132.28,15.7078]
[1718971244139,0.17,132.39,132.29,0.17]
[1718971244445,0.17,132.39,132.29,0.34]
[1718971245054,0.17,132.39,132.28,15.7078]
[1718971245248,100.17,132.39,132.28,15.7078]
[1718971245434,100.0,132.37,132.28,15.7078]
[1718971245638,20.0,132.36,132.28,15.7078]
[1718971245839,0.17,132.35,132.28,15.7078]
[1718971246239,74.02,132.35,132.28,15.7078]
[1718971250259,20.0,132.36,132.28,15.7078]
[1718971250443,100.0,132.38,132.28,15.7078]
[1718971250644,20.0,132.37,132.28,15.7078]
[1718971251355,0.17,132.36,132.28,15.7078]
[1718971251558,7.87443646,132.41,132.29,23.3551]
[1718971251767,20.0,132.4,132.29,23.3551]
[1718971252758,45.17,132.39,132.29,23.3551]
[1718971253070,20.0,132.4,132.3,1.30848833]
[1718971253242,20.0,132.4,132.29,23.5251]
[1718971253443,20.0,132.4,132.29,23.3551]
[1718971253759,28.85,132.38,132.29,23.1851]
[1718971253962,20.0,132.37,132.29,23.1851]
[1718971254640,0.17,132.36,132.29,23.1851]
[1718971255454,45.17,132.36,132.29,23.1851]
[1718971259160,0.17,132.36,132.29,23.1851]
[1718971260262,20.0,132.37,132.29,23.1851]
[1718971261144,28.85,132.38,132.3,45.0]
[1718971261350,7.87443646,132.41,132.31,15.9417]
[1718971261351,36.72443646,132.41,132.31,15.9417]
[1718971261551,20.0,132.4,132.31,15.9417]
[1718971262162,10.0,132.47,132.31,15.9417]
[1718971262163,15.1461,132.48,132.33,21.9998]
[1718971262347,20.0,132.45,132.34,28.8708]
[1718971262558,15.1461,132.48,132.35,45.0]
[1718971262559,20.0,132.47,132.35,45.0]
[1718971262757,20.0,132.47,132.35,45.17]
[1718971263069,20.0,132.47,132.36,0.82668409]
[1718971263370,20.0,132.47,132.35,45.17]
[1718971263867,45.17,132.46,132.35,45.17]
[1718971264168,20.0,132.45,132.35,45.17]
[1718971264357,20.0,132.47,132.36,15.1194]
[1718971265374,0.17,132.46,132.36,15.1194]
[1718971265667,45.17,132.46,132.36,15.1194]
[1718971265870,20.0,132.45,132.36,15.1194]
[1718971266251,20.0,132.45,132.37,51.1048]
[1718971266452,0.17,132.46,132.37,51.1048]
[1718971266652,45.0,132.47,132.37,51.1048]
[1718971266872,20.0,132.46,132.38,15.5758]
[1718971267071,7.87487823,132.5,132.4,15.9775]
[1718971267248,20.0,132.49,132.41,6.83349994]
[1718971267859,20.0,132.51,132.41,6.83349994]
[1718971268373,20.8633488,132.54,132.42,15.0288]
[1718971269173,0.8633488,132.54,132.42,15.0288]
[1718971269465,6.76524492,132.54,132.42,15.0288]
[1718971270471,20.0,132.53,132.42,15.0288]
[1718971270767,45.17,132.52,132.42,15.0288]
[1718971270972,20.0,132.51,132.42,15.0288]
[1718971271355,0.17,132.5,132.42,15.0288]
[1718971272273,45.17,132.5,132.42,15.0288]
[1718971272463,20.0,132.49,132.42,15.0288]
[1718971273056,0.17,132.5,132.42,15.0288]
[1718971275362,65.17,132.5,132.42,15.0288]
[1718971276072,28.85,132.46,132.42,15.0288]
[1718971276274,65.0,132.45,132.38,16.177]
[1718971276471,65.17,132.45,132.38,16.177]
[1718971280569,100.0,132.44,132.38,16.177]
[1718971280770,65.0,132.43,132.35,16.6063]
[1718971280970,65.17,132.43,132.35,16.6063]
[1718971283275,28.85,132.4,132.35,16.6063]
[1718971283477,20.0,132.39,132.35,16.6063]
[1718971284090,73.85,132.43,132.35,16.6063]
[1718971284265,20.17,132.42,132.35,16.6063]
[1718971285187,20.0,132.42,132.35,16.6063]
[1718971286263,45.0,132.41,132.35,16.6063]
[1718971286463,45.17,132.41,132.35,16.6063]
[1718971286791,0.17,132.41,132.35,16.6063]
[1718971286970,20.0,132.42,132.35,16.6063]
[1718971287786,45.0,132.41,132.35,16.6063]
[1718971287990,20.0,132.4,132.35,16.6063]
[1718971288480,0.17,132.39,132.35,16.6063]
[1718971290371,20.0,132.4,132.35,16.6063]
[1718971290565,20.0,132.42,132.35,16.6063]
[1718971290767,0.17,132.41,132.35,16.6063]
[1718971291198,45.0,132.42,132.35,16.6063]
[1718971291491,45.17,132.42,132.35,16.6063]
[1718971292279,20.0,132.41,132.35,16.6063]
[1718971296780,20.0,132.45,132.35,16.6063]
[1718971297781,45.0,132.44,132.35,16.6063]
[1718971297980,20.0,132.43,132.35,16.6063]
[1718971298279,45.0,132.42,132.35,16.6063]
[1718971298592,20.17,132.41,132.35,16.6063]
[1718971302396,20.0,132.41,132.35,16.6063]
[1718971302689,20.0,132.44,132.35,16.6063]
[1718971302894,20.0,132.45,132.37,16.074]
[1718971303203,20.0,132.47,132.39,15.093]
[1718971303512,20.0,132.47,132.36,6.384]
[1718971303513,20.0,132.5,132.41,15.093]
[1718971303677,355.1,132.52,132.41,15.093]
[1718971303678,20.0,132.51,132.41,15.093]
[1718971304606,20.0,132.53,132.43,15.7267]
[1718971305095,106.78978737,132.54,132.43,15.7267]
[1718971305280,100.8633488,132.54,132.43,15.7267]
[1718971305978,108.74977299,132.54,132.43,15.7267]
[1718971306531,65.17,132.53,132.43,15.7267]
[1718971306883,28.85,132.51,132.43,15.7267]
[1718971307120,20.0,132.5,132.43,15.7267]
[1718971308290,28.85,132.51,132.44,6.6448]
[1718971308490,0.8633488,132.54,132.45,15.0189]
[1718971309608,28.85,132.53,132.45,15.0189]
[1718971310415,20.0,132.52,132.45,15.0189]
[1718971316613,20.0,132.52,132.46,22.2859]
[1718971316913,0.8633488,132.54,132.46,22.2859]
[1718971316914,29.7133488,132.54,132.46,22.2859]
[1718971320623,0.8633488,132.54,132.47,15.8771]
[1718971320809,0.8633488,132.54,132.49,22.6063]
[1718971321504,29.7133488,132.54,132.49,22.6063]
[1718971321913,0.8633488,132.54,132.49,22.6063]
[1718971323204,0.8633488,132.54,132.5,15.3029]
[1718971323516,28.85,132.57,132.5,15.3029]
[1718971323725,20.0,132.59,132.52,16.0006]
[1718971325414,0.17,132.58,132.52,16.0006]
[1718971325918,20.0,132.59,132.52,16.0006]
[1718971327518,45.17,132.58,132.52,16.0006]
[1718971327704,20.0,132.57,132.52,16.0006]
[1718971328737,20.0,132.59,132.52,16.0006]
[1718971329504,21.35115142,132.67,132.54,16.1709]
[1718971329710,21.35115142,132.67,132.55,0.34]
[1718971329923,21.35115142,132.67,132.56,16.1709]
[1718971330231,100.8633488,132.68,132.56,16.1709]
[1718971330410,100.8633488,132.68,132.57,6.4175]
[1718971330611,100.8633488,132.68,132.57,12.43364548]
[1718971330805,0.8633488,132.68,132.57,12.43364548]
[1718971331423,0.8633488,132.68,132.57,6.4175]
[1718971331820,100.0,132.67,132.57,6.4175]
[1718971332219,20.0,132.66,132.57,6.4175]
[1718971332728,100.0,132.64,132.57,6.4175]
[1718971332932,65.17,132.63,132.57,6.4175]
[1718971333131,20.17,132.63,132.57,6.4175]
[1718971333508,20.0,132.62,132.57,6.4175]
[1718971333710,20.0,132.64,132.57,6.4175]
[1718971335813,20.8633488,132.68,132.58,15.3314]
[1718971336010,100.0,132.67,132.58,15.3314]
[1718971336422,100.0,132.65,132.58,15.3314]
[1718971336931,0.17,132.64,132.58,15.3314]
[1718971337228,45.17,132.64,132.58,15.3314]
[1718971337422,120.0,132.63,132.58,15.3314]
[1718971337734,28.85,132.6,132.53,6.2389]
[1718971338026,28.85,132.6,132.54,15.0063]
[1718971338211,120.0,132.59,132.54,15.0063]
[1718971338413,20.0,132.58,132.54,15.0063]
[1718971338622,0.17,132.57,132.54,15.0063]
[1718971339226,20.0,132.58,132.54,15.0063]
[1718971339413,20.0,132.6,132.54,15.0063]
[1718971339612,0.17,132.59,132.54,15.0063]
[1718971340311,20.0,132.6,132.54,15.0063]
[1718971340511,0.17,132.61,132.54,15.0063]
[1718971340820,45.17,132.62,132.54,15.0063]
[1718971341117,20.0,132.61,132.54,15.0063]
[1718971341316,48.85,132.61,132.54,15.0063]
[1718971342930,20.0,132.61,132.54,15.0063]
[1718971343137,20.0,132.63,132.56,15.8518]
[1718971343308,20.0,132.66,132.56,15.8518]
[1718971343514,100.0,132.65,132.56,15.8518]
[1718971343731,20.0,132.64,132.56,15.8518]
[1718971344036,20.0,132.64,132.57,6.6278]
[1718971344216,107.88147981,132.67,132.57,6.6278]
[1718971344217,20.0,132.66,132.57,6.6278]
[1718971344614,20.0,132.66,132.58,15.0446]
[1718971345328,20.0,132.67,132.58,15.0446]
[1718971345539,0.8633488,132.68,132.58,15.0446]
[1718971346111,0.8633488,132.68,132.59,0.34]
[1718971346312,0.8633488,132.68,132.58,15.2146]
[1718971346534,0.8633488,132.68,132.61,15.564]
[1718971349341,0.8633488,132.68,132.62,0.17]
[1718971349535,0.8633488,132.68,132.62,0.34]
[1718971349830,0.8633488,132.68,132.64,15.9403]
[1718971354036,20.0,132.71,132.64,15.9403]
[1718971354218,20.0,132.75,132.65,0.34]
[1718971356418,20.0,132.75,132.66,21.7785]
[1718971356945,100.0,132.75,132.66,21.7785]
[1718971357623,7.87757216,132.76,132.66,21.7785]
[1718971358237,20.17,132.75,132.66,21.7785]
[1718971358835,20.0,132.75,132.66,21.7785]
[1718971359144,28.85,132.74,132.66,21.7785]
[1718971359349,28.85,132.74,132.67,0.17]
[1718971359550,28.85,132.74,132.66,21.7785]
[1718971359845,20.0,132.75,132.67,0.17]
[1718971360022,20.0,132.77,132.69,6.661]
[1718971360223,20.0,132.8,132.69,6.661]
[1718971360422,7.87668342,132.79,132.7,0.17]
[1718971360620,20.0,132.78,132.69,6.661]
[1718971361925,28.85,132.75,132.69,6.661]
[1718971363123,20.0,132.78,132.71,15.916]
[1718971363329,20.0,132.78,132.72,0.17]
[1718971363555,0.8633488,132.81,132.72,0.17]
[1718971363861,0.8633488,132.81,132.72,0.34]
[1718971365133,0.8633488,132.81,132.74,16.1184]
[1718971369537,28.85,132.79,132.74,16.1184]
[1718971369745,20.0,132.78,132.74,16.1184]
[1718971369946,20.17,132.78,132.74,16.1184]
[1718971371656,20.0,132.78,132.74,16.1184]
[1718971371866,0.17,132.77,132.74,16.1184]
[1718971372571,45.17,132.77,132.7,22.6741]
[1718971372864,20.0,132.76,132.7,22.6741]
[1718971373428,20.0,132.77,132.7,22.6741]
[1718971373853,20.17,132.78,132.7,22.6741]
[1718971374134,100.0,132.76,132.7,22.6741]
[1718971374338,65.17,132.75,132.7,16.0905]
[1718971375533,100.0,132.74,132.67,22.0277]
[1718971375738,128.85,132.72,132.67,16.0193]
[1718971375938,20.17,132.71,132.67,16.0193]
[1718971376458,45.0,132.7,132.67,16.0193]
[1718971376644,20.0,132.69,132.64,21.9873]
[1718971378429,0.17,132.68,132.64,21.9873]
[1718971378629,20.0,132.69,132.64,21.9873]
[1718971379439,0.17,132.7,132.64,21.9873]
[1718971380145,45.17,132.7,132.64,21.9873]
[1718971380333,20.0,132.69,132.64,21.9873]
[1718971380867,28.85,132.68,132.64,21.9873]
[1718971381565,20.0,132.69,132.64,21.9873]
[1718971381776,20.0,132.73,132.64,21.9873]
[1718971382766,128.85,132.72,132.64,21.9873]
[1718971382968,20.0,132.71,132.64,21.9873]
[1718971383478,0.17,132.7,132.64,21.9873]
[1718971383676,45.17,132.7,132.64,21.9873]
[1718971383976,20.0,132.69,132.64,21.9873]
[1718971384560,20.0,132.69,132.64,15.8581]
[1718971384772,145.0,132.68,132.64,15.8581]
[1718971385072,20.0,132.67,132.64,15.8581]
[1718971385265,20.0,132.67,132.61,15.4448]
[1718971385855,45.17,132.66,132.61,15.4448]
[1718971386171,20.0,132.65,132.61,15.4448]
[1718971387262,20.0,132.69,132.61,15.4448]
[1718971387456,45.17,132.68,132.61,15.4448]
[1718971387673,20.0,132.67,132.61,15.4448]
[1718971389178,45.0,132.66,132.61,15.4448]
[1718971389367,20.17,132.65,132.61,15.4448]
[1718971390286,20.0,132.65,132.61,15.4448]
[1718971390457,7.89091356,132.7,132.61,15.4448]
[1718971390775,28.85,132.68,132.61,15.4448]
[1718971392954,20.0,132.67,132.61,15.4448]
[1718971393365,0.17,132.69,132.61,15.4448]
[1718971393660,45.0,132.7,132.61,15.4448]
[1718971393858,20.17,132.69,132.61,15.4448]
[1718971394284,20.0,132.69,132.61,15.4448]
[1718971394488,20.0,132.71,132.61,15.4448]
[1718971394676,20.0,132.71,132.63,15.8085]
[1718971394864,28.85,132.72,132.63,15.8085]
[1718971396369,20.0,132.71,132.63,15.8085]
[1718971396781,20.0,132.71,132.64,6.0586]
[1718971397085,20.0,132.77,132.64,21.604]
[1718971397284,7.88689686,132.76,132.64,21.604]
[1718971397459,20.0,132.75,132.65,15.5454]
[1718971398864,20.0,132.75,132.67,6.3666]
[1718971399078,20.0,132.75,132.68,15.8091]
[1718971399488,20.0,132.78,132.68,15.8091]
[1718971400169,0.17,132.77,132.68,15.8091]
[1718971400568,20.0,132.78,132.68,15.8091]
[1718971401577,120.0,132.78,132.68,15.8091]
[1718971401776,28.85,132.72,132.68,15.8091]
[1718971402565,100.0,132.74,132.68,15.8091]
[1718971402874,65.17,132.73,132.68,15.8091]
[1718971403187,65.17,132.73,132.65,15.7707]
[1718971403359,100.0,132.72,132.65,15.7707]
[1718971403564,20.0,132.71,132.65,15.7707]
[1718971403783,0.17,132.7,132.65,15.7707]
[1718971405287,45.0,132.71,132.65,15.7707]
[1718971405587,45.0,132.71,132.53,15.4448]
[1718971405588,100.0,132.68,132.62,15.7161]
[1718971405775,65.0,132.67,132.62,15.7161]
[1718971405969,65.17,132.67,132.62,15.7161]
[1718971407783,20.17,132.67,132.62,15.7161]
[1718971407994,20.0,132.71,132.62,15.7161]
[1718971408179,45.17,132.7,132.62,15.7161]
[1718971408383,120.0,132.69,132.62,15.7161]
[1718971408584,45.0,132.68,132.62,15.7161]
[1718971408773,120.0,132.67,132.62,15.7161]
[1718971408974,45.0,132.66,132.62,15.7161]
[1718971409287,20.0,132.65,132.62,15.7161]
[1718971409473,20.17,132.65,132.62,15.7161]
[1718971410084,120.17,132.65,132.59,16.2583]
[1718971410282,45.0,132.64,132.59,16.2583]
[1718971410586,20.0,132.63,132.59,16.2583]
[1718971410889,0.17,132.62,132.59,16.2583]
[1718971413072,45.17,132.62,132.59,16.2583]
[1718971413273,20.0,132.61,132.59,16.2583]
[1718971413675,0.17,132.6,132.56,16.0313]
[1718971415274,45.17,132.6,132.56,16.0313]
[1718971415482,120.0,132.59,132.53,15.1935]
[1718971415886,45.17,132.58,132.53,15.1935]
[1718971416088,20.0,132.57,132.53,15.1935]
[1718971417593,78.69,132.58,132.53,15.1935]
[1718971417594,33.52,132.58,132.53,15.1935]
[1718971417794,141.4129941,132.66,132.55,15.8297]
[1718971418095,41.4129941,132.66,132.55,15.8297]
[1718971418887,20.0,132.65,132.55,15.8297]
[1718971419900,41.4129941,132.66,132.56,21.3416]
[1718971420081,255.1,132.67,132.57,15.4764]
[1718971420483,482.5,132.71,132.57,15.4764]
[1718971420484,100.0,132.71,132.57,15.4764]
[1718971420896,107.89032231,132.71,132.57,15.4764]
[1718971421079,100.0,132.69,132.57,15.1364]
[1718971422098,45.17,132.68,132.57,15.1364]
[1718971422497,20.0,132.67,132.57,15.1364]